bitfinex-derivatives/quotes_SOLF0:USTF0_20250528
["timestamp","ask_amount","ask_price","bid_price","bid_amount"]
[1748446941594,0.03928907,170.28,170.24,0.04471042]
[1748446941992,0.03928907,170.28,170.27,5.8706]
[1748446943689,0.03928907,170.28,170.26,5.8708]
[1748446943994,0.03928907,170.28,170.24,0.04471042]
[1748446944894,0.03928907,170.28,170.24,5.91601042]
[1748446944895,5.90968907,170.28,170.24,5.91601042]
[1748446945694,5.90968907,170.28,170.25,5.8712]
[1748446945891,0.03928907,170.28,170.24,0.04471042]
[1748446946900,0.03928907,170.28,170.26,5.8707]
[1748446947694,5.90958907,170.28,170.25,5.8712]
[1748446947996,0.03928907,170.28,170.24,0.04471042]
[1748446948592,0.03928907,170.28,170.26,5.8707]
[1748446948801,0.03928907,170.28,170.24,0.04471042]
[1748446949386,0.03928907,170.28,170.27,5.8706]
[1748446951705,0.03928907,170.28,170.24,0.04471042]
[1748446952801,5.90988907,170.28,170.25,5.8712]
[1748446955198,0.03928907,170.28,170.24,0.04471042]
[1748446957402,5.8708,170.27,170.24,0.04471042]
[1748446957602,0.03928907,170.28,170.24,0.04471042]
[1748446957801,5.8707,170.27,170.24,0.04471042]
[1748446958408,5.8707,170.27,170.24,5.91631042]
[1748446958600,5.8707,170.27,170.24,0.04471042]
[1748446960007,5.8707,170.27,170.24,5.91631042]
[1748446960703,5.8707,170.27,170.24,0.04471042]
[1748446961506,5.871,170.26,170.24,0.04471042]
[1748446962007,5.8708,170.27,170.24,5.91641042]
[1748446962404,0.03928907,170.28,170.24,0.04471042]
[1748446962805,5.8706,170.27,170.24,5.91611042]
[1748446963007,0.03928907,170.28,170.24,5.91611042]
[1748446963408,0.03928907,170.28,170.24,0.04471042]
[1748446964714,5.8706,170.27,170.24,5.91621042]
[1748446965310,5.90968907,170.28,170.25,5.8713]
[1748446965810,0.03928907,170.28,170.27,5.8706]
[1748446970315,12.02551,170.33,170.26,30.54]
[1748446970516,12.02551,170.33,170.1,17.63]
[1748446970717,42.56551,170.33,170.26,5.871]
[1748446971215,5.8699,170.3,170.28,0.04392411]
[1748446971917,5.9100062,170.31,170.28,5.91422411]
[1748446974329,0.0406062,170.31,170.29,5.8699]
[1748446974523,0.0406062,170.31,170.28,0.04392411]
[1748446975131,0.0406062,170.31,170.3,5.8696]
[1748446981331,0.0406062,170.31,170.28,0.04392411]
[1748446981828,0.0406062,170.31,170.28,5.91392411]
[1748446982225,0.0406062,170.31,170.28,0.04392411]
[1748446982531,10.8447489,170.3,170.22,30.5]
[1748446982731,12.8844489,170.3,170.22,30.5]
[1748446982936,5.8705,170.28,170.24,5.8715]
[1748446983431,5.8705,170.28,170.22,30.5]
[1748446983632,0.0411708,170.27,170.23,0.03914857]
[1748446985027,0.0411708,170.27,170.26,5.871]
[1748446985429,7.08e-05,170.27,170.26,36.371]
[1748446990635,12.02551,170.33,170.32,5.8689]
[1748446993230,12.02551,170.33,170.31,0.04249392]
[1748446993633,17.89431,170.33,170.31,5.91179392]
[1748446993833,12.02551,170.33,170.31,0.04249392]
[1748446994030,12.02551,170.33,170.27,30.5]
[1748446994235,13.94141,170.33,170.28,5.8702]
[1748446994637,5.8695,170.31,170.28,5.8702]
[1748446995033,13.94141,170.33,170.28,0.04227415]
[1748446995237,5.869,170.32,170.29,5.8697]
[1748446995437,13.94141,170.33,170.29,5.8697]
[1748446995637,13.94141,170.33,170.3,5.8695]
[1748446995838,13.94141,170.33,170.28,0.04227415]
[1748446996040,24.7861589,170.33,170.28,0.04227415]
[1748446999242,1.9618,170.32,170.28,0.04227415]
[1748446999644,5.8693,170.31,170.28,0.04227415]
[1748446999933,1.9618,170.32,170.28,0.04227415]
[1748447000831,5.87,170.29,170.28,0.04227415]
[1748447001036,10.88222169,170.3,170.21,30.5]
[1748447001235,10.8447489,170.3,170.21,30.5]
[1748447002132,0.04120863,170.27,170.24,0.03984596]
[1748447002337,0.04120863,170.27,170.26,5.871]
[1748447010845,8.63e-06,170.27,170.26,5.871]
[1748447035253,12.02551,170.33,170.32,5.8692]
[1748447039958,12.02551,170.33,170.31,0.0388932]
[1748447040759,12.02551,170.33,170.32,5.8692]
[1748447042658,12.02551,170.33,170.31,0.0388932]
[1748447043568,17.89461,170.33,170.31,0.0388932]
[1748447043956,12.02551,170.33,170.31,0.0388932]
[1748447044363,17.89441,170.33,170.31,0.0388932]
[1748447045170,5.8692,170.32,170.31,0.0388932]
[1748447045555,12.02551,170.33,170.31,0.0388932]
[1748447045759,17.89461,170.33,170.31,0.0388932]
[1748447046272,12.02551,170.33,170.31,5.9083932]
[1748447046966,12.02551,170.33,170.31,0.0388932]
[1748447047368,17.89461,170.33,170.31,0.0388932]
[1748447048368,5.8692,170.32,170.31,0.0388932]
[1748447048670,12.02551,170.33,170.31,0.0388932]
[1748447048969,17.89461,170.33,170.31,0.0388932]
[1748447049471,5.8692,170.32,170.31,0.0388932]
[1748447049769,12.02551,170.33,170.24,30.44]
[1748447049970,5.8699,170.3,170.27,5.8706]
[1748447050364,12.02551,170.33,170.24,30.44]
[1748447050664,12.02551,170.33,170.27,5.8706]
[1748447050963,0.04486056,170.3,170.27,5.91142145]
[1748447051163,0.04486056,170.3,170.28,5.8705]
[1748447052272,0.04486056,170.3,170.29,5.8702]
[1748447052473,0.04486056,170.3,170.27,0.04082145]
[1748447052972,0.04486056,170.3,170.28,5.8704]
[1748447053270,0.04486056,170.3,170.27,0.04082145]
[1748447053773,0.04486056,170.3,170.28,5.8704]
[1748447054977,0.04486056,170.3,170.27,0.04082145]
[1748447055567,0.04486056,170.3,170.28,5.8703]
[1748447056570,5.91476056,170.3,170.27,5.91162145]
[1748447056771,0.04486056,170.3,170.27,0.04082145]
[1748447057269,5.8705,170.29,170.27,0.04082145]
[1748447057875,0.04486056,170.3,170.2,30.44]
[1748447058171,5.9949,170.28,170.2,30.44]
[1748447058773,5.9949,170.28,170.23,5.872]
[1748447058973,5.8715,170.26,170.24,0.04091481]
[1748447061277,5.8715,170.26,170.24,5.91281481]
[1748447061577,5.8715,170.26,170.24,0.04091481]
[1748447061977,5.8716,170.25,170.24,0.04091481]
[1748447064681,0.04046115,170.27,170.26,5.8712]
[1748447064884,0.04046115,170.27,170.24,0.04091481]
[1748447065374,0.04046115,170.27,170.26,5.8712]
[1748447068888,6.115e-05,170.27,170.26,5.8712]
[1748447069091,17.17907,170.35,170.26,10.8447489]
[1748447069593,23.04737,170.35,170.33,5.8688]
[1748447069986,17.17907,170.35,170.33,5.8688]
[1748447070390,17.17907,170.35,170.32,0.04116463]
[1748447070391,17.17907,170.35,170.32,5.91016463]
[1748447071486,23.04717,170.35,170.32,5.91016463]
[1748447071783,17.17907,170.35,170.32,0.04116463]
[1748447072894,23.04727,170.35,170.32,5.91026463]
[1748447073192,17.17907,170.35,170.32,0.04116463]
[1748447073993,23.04737,170.35,170.32,5.91036463]
[1748447074496,17.17907,170.35,170.32,0.04116463]
[1748447076397,5.8687,170.34,170.32,0.04116463]
[1748447076694,17.17907,170.35,170.32,0.04116463]
[1748447077496,5.8688,170.33,170.32,0.04116463]
[1748447078898,5.8686,170.34,170.32,0.04116463]
[1748447079696,5.8688,170.33,170.32,0.04116463]
[1748447079997,17.17907,170.35,170.32,0.04116463]
[1748447081296,23.04747,170.35,170.32,5.91026463]
[1748447082195,5.8685,170.34,170.32,5.91026463]
[1748447082494,17.17907,170.35,170.32,0.04116463]
[1748447082895,5.8687,170.34,170.32,0.04116463]
[1748447083595,5.8688,170.33,170.32,0.04116463]
[1748447085391,5.8686,170.34,170.32,0.04116463]
[1748447086403,5.8688,170.33,170.32,0.04116463]
[1748447089002,5.8701,170.3,170.26,5.871]
[1748447089202,5.9534,170.34,170.21,3.9712]
[1748447089396,10.8447489,170.32,170.21,3.9712]
[1748447089599,10.8447489,170.32,170.23,5.8721]
[1748447089902,0.04215264,170.29,170.26,0.04088963]
[1748447090104,5.8706,170.28,170.26,0.04088963]
[1748447090299,0.04215264,170.29,170.26,0.04088963]
[1748447091798,0.04215264,170.29,170.28,5.8706]
[1748447094411,0.04215264,170.29,170.27,5.8708]
[1748447094918,0.04215264,170.29,170.28,5.8706]
[1748447095407,5.8706,170.28,170.26,0.04088963]
[1748447095704,0.04215264,170.29,170.26,0.04088963]
[1748447095903,0.04215264,170.29,170.26,5.91188963]
[1748447097007,0.04215264,170.29,170.27,5.8708]
[1748447100206,0.04215264,170.29,170.28,5.8706]
[1748447100914,0.04215264,170.29,170.27,5.8708]
[1748447101208,0.04215264,170.29,170.26,0.04088963]
[1748447101515,0.04215264,170.29,170.26,5.91188963]
[1748447101710,0.04215264,170.29,170.26,0.04088963]
[1748447102307,0.04215264,170.29,170.27,5.8709]
[1748447102511,0.04215264,170.29,170.26,0.04088963]
[1748447105906,5.8709,170.28,170.26,0.04088963]
[1748447106408,5.8709,170.27,170.26,0.04088963]
[1748447108715,0.04215264,170.29,170.26,0.04088963]
[1748447109110,5.8709,170.27,170.26,0.04088963]
[1748447111208,0.04215264,170.29,170.26,0.04088963]
[1748447111711,0.04215264,170.29,170.26,5.91208963]
[1748447112111,0.04215264,170.29,170.26,0.04088963]
[1748447112417,0.04215264,170.29,170.27,5.8709]
[1748447113617,5.8709,170.27,170.26,0.04088963]
[1748447119013,10.8447489,170.25,170.13,30.4]
[1748447119215,5.88,170.27,170.13,30.4]
[1748447119216,10.8447489,170.22,170.13,30.4]
[1748447119521,5.8739,170.19,170.15,5.8748]
[1748447119919,0.04523015,170.19,170.15,0.04297256]
[1748447120818,5.8747,170.16,170.15,0.04297256]
[1748447122115,0.04523015,170.19,170.15,0.04297256]
[1748447122314,5.8746,170.17,170.15,0.04297256]
[1748447122516,0.04523015,170.19,170.15,0.04297256]
[1748447123822,5.8747,170.16,170.15,0.04297256]
[1748447125424,5.8744,170.17,170.15,0.04297256]
[1748447126923,5.8747,170.16,170.15,0.04297256]
[1748447129122,5.8758,170.13,170.08,34.4492]
[1748447129323,5.8758,170.13,170.08,32.4039]
[1748447129720,30.42,170.17,170.1,5.8766]
[1748447129926,30.42,170.17,170.08,32.4039]
[1748447130127,30.42,170.17,170.11,5.8764]
[1748447130319,0.04196445,170.14,170.11,5.91888045]
[1748447130519,0.04196445,170.14,170.11,0.04248045]
[1748447130720,0.04196445,170.14,170.02,3.9302]
[1748447130721,0.04196445,170.14,170.05,30.42]
[1748447130921,10.8447489,170.16,170.05,30.42]
[1748447131425,30.42,170.17,170.05,30.42]
[1748447131625,0.03827773,170.13,170.09,0.04450626]
[1748447131827,0.03827773,170.13,170.11,5.8763]
[1748447132528,0.03827773,170.13,170.12,5.8761]
[1748447133328,0.03827773,170.13,170.1,5.8765]
[1748447133728,5.91427773,170.13,170.1,5.8765]
[1748447134026,0.03827773,170.13,170.1,5.8765]
[1748447134424,5.8761,170.12,170.09,5.92150626]
[1748447135430,5.8761,170.12,170.1,5.8767]
[1748447135832,0.03827773,170.13,170.09,0.04450626]
[1748447136534,5.8765,170.11,170.09,0.04450626]
[1748447137432,5.8768,170.1,170.09,0.04450626]
[1748447141634,10.8447489,170.1,170.0,30.4]
[1748447142331,5.8778,170.07,170.04,5.8786]
[1748447142530,5.91789071,170.07,170.04,5.92143855]
[1748447143339,0.04009071,170.07,170.04,0.04283855]
[1748447144335,0.04009071,170.07,170.05,5.8783]
[1748447144940,0.04009071,170.07,170.06,5.8782]
[1748447145632,30.4,170.15,170.12,5.8759]
[1748447146032,36.2752,170.15,170.12,5.8759]
[1748447146338,30.4,170.18,170.08,30.4]
[1748447146533,0.04030442,170.15,170.11,0.04312358]
[1748447146748,0.04030442,170.15,170.14,5.8751]
[1748447148246,5.8734,170.2,170.16,5.8747]
[1748447148448,30.4,170.24,170.16,5.8747]
[1748447148937,30.4,170.24,170.13,30.4]
[1748447149343,0.0437767,170.2,170.17,0.03724152]
[1748447149542,5.874,170.19,170.17,0.03724152]
[1748447150145,5.874,170.18,170.17,0.03724152]
[1748447150345,0.0437767,170.2,170.17,0.03724152]
[1748447150745,5.8737,170.19,170.17,0.03724152]
[1748447153045,0.0437767,170.2,170.17,0.03724152]
[1748447153440,5.8739,170.19,170.17,0.03724152]
[1748447154646,5.874,170.18,170.17,0.03724152]
[1748447155146,5.8739,170.19,170.17,0.03724152]
[1748447155541,0.0437767,170.2,170.17,0.03724152]
[1748447155741,5.9171767,170.2,170.17,0.03724152]
[1748447155943,0.0437767,170.2,170.17,5.91154152]
[1748447157148,0.0437767,170.2,170.17,0.03724152]
[1748447157643,0.0437767,170.2,170.19,5.8737]
[1748447158647,0.0437767,170.2,170.17,0.03724152]
[1748447159150,5.9170767,170.2,170.17,5.91134152]
[1748447159551,0.0437767,170.2,170.17,5.91134152]
[1748447159752,5.8737,170.19,170.17,0.03724152]
[1748447160752,0.0437767,170.2,170.17,0.03724152]
[1748447161455,0.0437767,170.2,170.13,5.8755]
[1748447161857,30.38,170.19,170.11,30.38]
[1748447162060,30.38,170.19,170.12,5.8758]
[1748447162258,10.8447489,170.18,170.08,30.38]
[1748447162458,10.8447489,170.18,170.11,0.03897167]
[1748447162459,0.04216354,170.15,170.11,0.03897167]
[1748447163457,0.04216354,170.15,170.13,5.8755]
[1748447164365,0.04216354,170.15,170.14,5.8754]
[1748447164661,0.04216354,170.15,170.11,0.03897167]
[1748447165459,0.04216354,170.15,170.12,5.876]
[1748447165969,0.04216354,170.15,170.11,0.03897167]
[1748447166573,0.04216354,170.15,170.14,5.8754]
[1748447174767,0.04216354,170.15,170.13,5.8756]
[1748447174970,0.04216354,170.15,170.11,30.39897167]
[1748447175368,0.04216354,170.15,170.12,5.8759]
[1748447176166,5.91736354,170.15,170.11,36.27527167]
[1748447176370,0.04216354,170.15,170.11,36.27527167]
[1748447176570,0.04216354,170.15,170.11,30.39897167]
[1748447176771,0.04216354,170.15,170.12,5.876]
[1748447177569,0.04216354,170.15,170.13,5.8757]
[1748447180172,0.04216354,170.15,170.11,30.39897167]
[1748447180665,0.04216354,170.15,170.11,0.03897167]
[1748447180666,10.8447489,170.14,170.11,0.03897167]
[1748447181073,5.876,170.13,170.11,0.03897167]
[1748447181273,45.2957489,170.14,170.11,0.03897167]
[1748447181965,51.1713489,170.14,170.11,0.03897167]
[1748447182768,5.8758,170.13,170.11,0.03897167]
[1748447183564,45.2957489,170.14,170.11,0.03897167]
[1748447183565,51.1712489,170.14,170.11,0.03897167]
[1748447187577,34.451,170.14,170.11,0.03897167]
[1748447187773,0.04216354,170.15,170.11,0.03897167]
[1748447188272,0.04216354,170.15,170.13,5.8757]
[1748447188481,0.04216354,170.15,170.11,0.03897167]
[1748447189178,0.04216354,170.15,170.13,5.8757]
[1748447189382,0.04216354,170.15,170.11,0.03897167]
[1748447189879,0.04216354,170.15,170.13,5.8755]
[1748447191475,0.04216354,170.15,170.14,5.8754]
[1748447191977,0.04216354,170.15,170.13,5.8756]
[1748447192980,0.04216354,170.15,170.14,5.8754]
[1748447194178,0.04216354,170.15,170.13,5.8756]
[1748447194484,0.04216354,170.15,170.11,0.03897167]
[1748447194876,0.04216354,170.15,170.13,5.8757]
[1748447196982,0.04216354,170.15,170.14,5.8754]
[1748447198986,32.3889,170.2,170.11,30.39897167]
[1748447199180,30.36,170.2,170.11,30.39897167]
[1748447199583,30.36,170.2,170.17,5.8741]
[1748447199782,5.8732,170.21,170.17,5.8741]
[1748447199982,5.91491836,170.21,170.17,5.91894736]
[1748447200986,5.8734,170.2,170.17,0.04484736]
[1748447201585,5.8734,170.2,170.17,5.91924736]
[1748447202485,5.91481836,170.21,170.17,5.91924736]
[1748447202885,5.91481836,170.21,170.18,5.874]
[1748447203287,0.04171836,170.21,170.17,0.04484736]
[1748447203487,0.04171836,170.21,170.18,5.8737]
[1748447203796,0.04171836,170.21,170.17,0.04484736]
[1748447204186,0.04171836,170.21,170.2,5.8733]
[1748447209990,0.04171836,170.21,170.19,5.8735]
[1748447210384,0.04171836,170.21,170.17,0.04484736]
[1748447211685,5.8736,170.2,170.17,0.04484736]
[1748447211885,0.04171836,170.21,170.17,0.04484736]
[1748447212287,5.91491836,170.21,170.17,5.91894736]
[1748447212486,0.04171836,170.21,170.17,0.04484736]
[1748447213490,5.8748,170.16,170.1,30.36]
[1748447213683,5.8748,170.16,170.09,30.36]
[1748447214289,5.8745,170.17,170.09,30.36]
[1748447214488,0.04042835,170.14,170.11,0.04152977]
[1748447215391,0.04042835,170.14,170.12,5.8759]
[1748447217494,0.04042835,170.14,170.13,5.8757]
[1748447219790,0.04042835,170.14,170.11,0.04152977]
[1748447220992,0.04042835,170.14,170.13,5.8757]
[1748447221496,0.04042835,170.14,170.13,36.2357]
[1748447228799,34.4409,170.21,170.13,30.36]
[1748447228999,5.8729,170.22,170.13,30.36]
[1748447229397,5.8724,170.23,170.13,30.36]
[1748447229797,0.04170203,170.2,170.16,0.04428259]
[1748447230294,0.04170203,170.2,170.19,5.8737]
[1748447231298,2.03e-06,170.2,170.19,5.8737]
[1748447231509,30.34,170.27,170.25,5.8716]
[1748447231802,10.8447489,170.3,170.25,5.8716]
[1748447231995,30.34,170.29,170.25,5.8716]
[1748447232195,5.8708,170.28,170.25,5.8716]
[1748447232405,5.91366709,170.28,170.25,5.91471312]
[1748447232590,5.91366709,170.28,170.25,0.04311312]
[1748447234302,5.871,170.27,170.25,0.04311312]
[1748447234797,0.04286709,170.28,170.25,0.04311312]
[1748447235299,5.91366709,170.28,170.25,0.04311312]
[1748447235601,0.04286709,170.28,170.25,0.04311312]
[1748447236196,10.8447489,170.27,170.14,30.32]
[1748447236501,10.8447489,170.24,170.14,30.32]
[1748447236801,5.8732,170.21,170.17,5.8742]
[1748447237102,5.91610846,170.21,170.17,5.91131055]
[1748447237296,5.91610846,170.21,170.18,5.874]
[1748447237493,0.04290846,170.21,170.18,5.874]
[1748447239507,0.04290846,170.21,170.19,5.8736]
[1748447239706,0.04290846,170.21,170.17,0.03711055]
[1748447240104,0.04290846,170.21,170.18,5.8739]
[1748447240408,0.04290846,170.21,170.17,0.03711055]
[1748447240607,0.04290846,170.21,170.18,5.8738]
[1748447241006,5.91590846,170.21,170.17,0.03711055]
[1748447241308,0.04290846,170.21,170.17,0.03711055]
[1748447241500,5.8734,170.2,170.17,0.03711055]
[1748447242214,5.8734,170.2,170.17,5.91141055]
[1748447245615,5.91600846,170.21,170.17,5.91141055]
[1748447246215,5.8735,170.2,170.17,5.91141055]
[1748447246405,0.04290846,170.21,170.17,0.03711055]
[1748447246806,5.8736,170.2,170.17,0.03711055]
[1748447247309,5.8736,170.2,170.17,5.91141055]
[1748447248209,5.8736,170.2,170.17,0.03711055]
[1748447248402,0.04290846,170.21,170.17,0.03711055]
[1748447249709,5.8734,170.2,170.17,0.03711055]
[1748447250512,5.8737,170.19,170.17,0.03711055]
[1748447250713,10.8447489,170.19,170.17,0.03711055]
[1748447251403,10.8447489,170.19,170.13,5.8756]
[1748447252007,10.8447489,170.16,170.06,1.9571]
[1748447252208,10.8447489,170.16,170.05,30.34]
[1748447252412,5.91963618,170.12,170.09,0.04301453]
[1748447253112,5.91963618,170.12,170.09,5.92011453]
[1748447253503,0.04343618,170.12,170.09,5.92011453]
[1748447253907,0.04343618,170.12,170.09,0.04301453]
[1748447254108,0.04343618,170.12,170.02,1.9742]
[1748447254306,10.8447489,170.1,170.0,30.34]
[1748447254704,5.8777,170.08,170.04,5.8788]
[1748447254903,32.3403,170.11,170.0,30.34]
[1748447255110,0.03802238,170.07,170.04,0.03836481]
[1748447255314,0.03802238,170.07,170.06,5.8782]
[1748447256718,0.03802238,170.07,170.05,5.8784]
[1748447256914,0.03802238,170.07,170.04,0.03836481]
[1748447257918,0.03802238,170.07,170.04,5.91716481]
[1748447258920,0.03802238,170.07,170.05,5.8785]
[1748447260208,0.03802238,170.07,170.06,5.8782]
[1748447262212,0.03802238,170.07,170.04,0.03836481]
[1748447262717,0.03802238,170.07,170.04,5.91696481]
[1748447263720,0.03802238,170.07,170.05,5.8785]
[1748447263909,0.03802238,170.07,170.04,0.03836481]
[1748447265421,5.91622238,170.07,170.04,0.03836481]
[1748447268626,5.8782,170.06,170.04,0.03836481]
[1748447271029,5.8785,170.05,170.04,0.03836481]
[1748447275023,5.8793,170.03,169.97,30.32]
[1748447275224,10.8447489,170.06,169.97,30.34]
[1748447275427,45.2905489,170.07,170.01,5.8797]
[1748447275933,34.4458,170.07,170.01,5.8797]
[1748447276235,0.03740369,170.06,170.02,0.03875253]
[1748447276533,5.8787,170.05,170.02,0.03875253]
[1748447276735,0.03740369,170.06,170.02,0.03875253]
[1748447277334,5.8791,170.04,170.02,0.03875253]
[1748447278235,5.91580369,170.06,170.02,5.91815253]
[1748447278533,0.03740369,170.06,170.02,0.03875253]
[1748447278926,5.879,170.04,170.02,0.03875253]
[1748447279839,5.8792,170.03,170.02,0.03875253]
[1748447280541,5.8792,170.03,169.94,30.34]
[1748447280542,41.1847489,170.03,169.94,30.34]
[1748447281043,5.88,170.01,169.97,5.8809]
[1748447281332,5.91738636,170.01,169.97,5.92600467]
[1748447282132,5.91738636,170.01,169.98,5.8808]
[1748447282630,5.91738636,170.01,169.97,5.92610467]
[1748447282831,5.8802,170.0,169.97,5.92610467]
[1748447283127,0.03738636,170.01,169.97,0.04510467]
[1748447283931,5.8803,170.0,169.97,5.92620467]
[1748447284640,0.03738636,170.01,169.97,0.04510467]
[1748447285139,5.8809,169.98,169.97,0.04510467]
[1748447286134,0.03738636,170.01,169.97,0.04510467]
[1748447287839,5.8803,170.0,169.97,0.04510467]
[1748447288239,0.03738636,170.01,169.97,0.04510467]
[1748447288440,5.8808,169.99,169.97,0.04510467]
[1748447289237,5.8805,170.0,169.97,0.04510467]
[1748447289445,0.03738636,170.01,169.97,5.92610467]
[1748447289744,5.8804,170.0,169.97,5.92610467]
[1748447289942,0.03738636,170.01,169.97,5.92610467]
[1748447290243,0.03738636,170.01,169.97,0.04510467]
[1748447290439,10.8447489,170.0,169.97,0.04510467]
[1748447290638,30.32,169.99,169.91,5.9194]
[1748447290945,41.1647489,169.99,169.91,1.9268]
[1748447291436,10.8447489,169.96,169.86,4.0463]
[1748447291830,0.04445293,169.93,169.89,0.04185806]
[1748447292234,5.92735293,169.93,169.89,5.92565806]
[1748447292835,5.92735293,169.93,169.89,0.04185806]
[1748447293333,5.8833,169.92,169.89,0.04185806]
[1748447293535,5.8833,169.92,169.89,5.92585806]
[1748447293933,0.04445293,169.93,169.89,0.04185806]
[1748447294137,0.04445293,169.93,169.9,5.8835]
[1748447294343,0.04445293,169.93,169.89,0.04185806]
[1748447294944,0.04445293,169.93,169.9,5.8836]
[1748447295646,5.92715293,169.93,169.9,5.8836]
[1748447296350,5.8831,169.92,169.89,5.92585806]
[1748447297043,5.92725293,169.93,169.9,5.8837]
[1748447297242,0.04445293,169.93,169.9,5.8837]
[1748447297749,5.92735293,169.93,169.9,5.8837]
[1748447299442,0.04445293,169.93,169.91,5.8833]
[1748447299646,0.04445293,169.93,169.89,0.04185806]
[1748447301039,0.04445293,169.93,169.92,5.883]
[1748447302145,0.04445293,169.93,169.89,0.04185806]
[1748447302350,0.04445293,169.93,169.91,5.8832]
[1748447302550,5.92715293,169.93,169.89,0.04185806]
[1748447302750,5.92715293,169.93,169.9,5.8836]
[1748447303949,5.883,169.92,169.89,0.04185806]
[1748447304157,5.883,169.92,169.89,5.92575806]
[1748447307254,0.04445293,169.93,169.89,0.04185806]
[1748447308460,5.8836,169.91,169.89,0.04185806]
[1748447309761,30.34,169.92,169.89,0.04185806]
[1748447310756,36.2233,169.92,169.89,0.04185806]
[1748447310954,36.2233,169.92,169.89,5.92575806]
[1748447311155,30.34,169.92,169.89,0.04185806]
[1748447311354,5.8834,169.91,169.89,0.04185806]
[1748447311860,36.2231,169.92,169.89,5.92565806]
[1748447312061,41.1847489,169.92,169.89,0.04185806]
[1748447312561,5.8837,169.9,169.89,0.04185806]
[1748447318560,30.34,169.92,169.9,5.8836]
[1748447318760,30.34,169.92,169.89,0.04185806]
[1748447318961,0.04445293,169.93,169.89,0.04185806]
[1748447319164,0.04445293,169.93,169.91,5.8833]
[1748447319663,5.8832,169.92,169.89,5.92585806]
[1748447320164,5.8834,169.91,169.89,0.04185806]
[1748447320766,5.8837,169.9,169.89,0.04185806]
[1748447320969,0.04445293,169.93,169.89,0.04185806]
[1748447321666,5.8835,169.91,169.89,0.04185806]
[1748447322169,5.8837,169.9,169.89,0.04185806]
[1748447324468,0.04445293,169.93,169.89,0.04185806]
[1748447324668,0.04445293,169.93,169.9,5.8836]
[1748447324870,5.92735293,169.93,169.9,5.8836]
[1748447325370,5.8831,169.92,169.9,5.8836]
[1748447325672,0.04445293,169.93,169.89,0.04185806]
[1748447326074,0.04445293,169.93,169.89,30.38185806]
[1748447326270,0.04445293,169.93,169.92,5.883]
[1748447326774,0.04445293,169.93,169.91,5.8831]
[1748447327173,0.04445293,169.93,169.89,30.38185806]
[1748447327369,0.04445293,169.93,169.92,5.883]
[1748447328279,0.04445293,169.93,169.91,5.8832]
[1748447329381,0.04445293,169.93,169.92,5.883]
[1748447329782,0.04445293,169.93,169.91,5.8832]
[1748447329983,0.04445293,169.93,169.89,30.38185806]
[1748447330379,0.04445293,169.93,169.91,5.883]
[1748447330681,0.04445293,169.93,169.89,30.38185806]
[1748447330884,0.04445293,169.93,169.91,5.8831]
[1748447331082,5.883,169.92,169.89,30.38185806]
[1748447331282,0.04445293,169.93,169.89,30.38185806]
[1748447331886,5.92735293,169.93,169.9,5.8835]
[1748447332190,5.92735293,169.93,169.89,30.38185806]
[1748447332383,5.92735293,169.93,169.9,5.8836]
[1748447332692,5.8837,169.9,169.89,0.04185806]
[1748447338287,5.8848,169.87,169.84,5.8857]
[1748447338582,10.8447489,169.9,169.84,5.8857]
[1748447338792,5.8846,169.88,169.84,5.8857]
[1748447339091,5.8846,169.88,169.85,5.8852]
[1748447339294,5.92641841,169.88,169.85,5.92885724]
[1748447342488,5.8848,169.87,169.85,0.04365724]
[1748447343189,5.8851,169.86,169.85,0.04365724]
[1748447344188,5.8857,169.85,169.8,30.34]
[1748447344386,10.8447489,169.87,169.8,30.34]
[1748447344598,10.8447489,169.87,169.8,5.8871]
[1748447344785,5.886,169.84,169.77,538.4]
[1748447345196,0.04492644,169.82,169.79,0.02426091]
[1748447345689,0.04492644,169.82,169.8,5.887]
[1748447345893,0.04492644,169.82,169.79,0.02426091]
[1748447346296,2.644e-05,169.82,169.81,5.8868]
[1748447347095,2.644e-05,169.82,169.81,36.2268]
[1748447347890,2.644e-05,169.82,169.81,40.1457]
[1748447351099,2.644e-05,169.82,169.81,36.2268]
[1748447357802,2.644e-05,169.82,169.81,5.8868]
[1748447358598,2.644e-05,169.82,169.79,0.02426091]
[1748447358806,5.88672644,169.82,169.79,0.02426091]
[1748447359108,2.644e-05,169.82,169.79,0.02426091]
[1748447359407,2.644e-05,169.82,169.8,5.887]